fUST/lending_fUST_20250723
["ID","MTS","AMOUNT","RATE_DAILY","PERIOD"]
[374362958,1753279846908,-2357.27,0.000228,7]
[374362960,1753279846917,-519.22,0.00022807,5]
[374362962,1753279846927,-527.14,0.00022838,6]
[374362964,1753279846938,-211.815529,0.00022875,3]
[374362967,1753279846948,-211.815529,0.00022875,3]
[374362968,1753279846957,-560.0,0.00022892,2]
[374362970,1753279846967,-151.0,0.000229,7]
[374362972,1753279846976,-151.0,0.000229,7]
[374362975,1753279846986,-205.0,0.000229,2]
[374362977,1753279846995,-519.22,0.00022907,2]
[374362979,1753279847005,-151.0,0.00022929,7]
[374362980,1753279847014,-387.36377,0.00022929,7]
[374362982,1753279847023,-387.36377,0.00022929,7]
[374362984,1753279847033,-177.69839,0.00022929,7]
[374362986,1753279847042,-151.0,0.00022929,7]
[374362988,1753279847052,-177.69839,0.00022929,7]
[374362990,1753279847061,-151.0,0.00022929,7]
[374362992,1753279847071,-1795.317822,0.00022929,7]
[374362994,1753279847083,-1795.317822,0.00022929,7]
[374362996,1753279847093,-151.0,0.00022929,7]
[374362998,1753279847102,-151.0,0.00022929,7]
[374363000,1753279847111,-527.14,0.00022938,3]
[374363002,1753279847121,-160.0,0.00023,3]
[374363004,1753279847130,-160.0,0.00023,3]
[374363006,1753279847140,-151.0,0.00023,7]
[374363008,1753279847149,-11428.28,0.00023,7]
[374363010,1753279847159,-160.0,0.00023,3]
[374363012,1753279847169,-476.696448,0.00023,3]
[374363014,1753279847178,-12622.36869388,0.00023,3]
[374363016,1753279847189,-12622.36869388,0.00023,10]
[374363019,1753279847200,-231.11583447,0.00023,3]
[374363020,1753279847209,-160.0,0.00023,3]
[374363023,1753279847219,-160.0,0.00023,3]
[374363024,1753279847228,-840.06856235,0.00023,3]
[374363026,1753279847238,-160.0,0.00023,2]
[374363028,1753279847247,-492.9,0.00023013,2]
[374363030,1753279847257,-151.0,0.00023013,7]
[374363032,1753279847266,-460.0,0.00023013,2]
[374363034,1753279847275,-460.0,0.00023013,2]
[374363036,1753279847284,-774.0,0.00023013,2]
[374363038,1753279847294,-4461.85,0.00023013,2]
[374363040,1753279847303,-460.0,0.00023013,2]
[374363042,1753279847313,-776.97,0.00023013,2]
[374363044,1753279847323,-943.52,0.00023013,2]
[374363046,1753279847332,-460.0,0.00023013,2]
[374363048,1753279847341,-272.1625498,0.00023013,2]
[374363050,1753279847351,-460.0,0.00023013,2]
[374363052,1753279847360,-1021.86,0.00023013,2]
[374363054,1753279847370,-662.95,0.00023013,2]
[374363056,1753279847379,-527.17854102,0.00023038,3]
[374363058,1753279847388,-211.815529,0.00023053,6]
[374363060,1753279847398,-211.815529,0.00023053,6]
[374363062,1753279847407,-287.5,0.00023128,6]
[374363064,1753279847416,-205.0,0.0002321,2]
[374363066,1753279847429,-858.87399471,0.00023248,2]
[374363068,1753279847441,-492.9,0.00023287,2]
[374363070,1753279847450,-460.0,0.00023287,2]
[374363072,1753279847460,-460.0,0.00023287,2]
[374363074,1753279847470,-774.0,0.00023287,2]
[374363076,1753279847479,-4461.85,0.00023287,2]
[374363078,1753279847489,-460.0,0.00023287,2]
[374363080,1753279847498,-776.97,0.00023287,2]
[374363082,1753279847508,-943.52,0.00023287,2]
[374363084,1753279847518,-460.0,0.00023287,2]
[374363086,1753279847528,-281.47461482,0.00023287,2]
[374363088,1753279847538,-1021.86,0.00023287,2]
[374363090,1753279847547,-662.95,0.00023287,2]
[374363092,1753279847557,-168.0,0.00023361,2]
[374363094,1753279847566,-500.0,0.00023373,2]
[374363096,1753279847575,-26579.03478648,0.00023398,2]
[374363098,1753279847585,-42038.53,0.000234,2]
[374363100,1753279847595,-1213.96,0.000234,7]
[374363102,1753279847604,-660.0,0.0002344,2]
[374363104,1753279847615,-500.0,0.00023456,2]
[374363106,1753279847624,-287.5,0.00023456,6]
[374363108,1753279847634,-223.0315306,0.00023491,2]
[374363110,1753279847645,-168.0,0.00023498,2]
[374363112,1753279847655,-2069.97,0.000235,2]
[374363114,1753279847665,-205.0,0.0002353,2]
[374363116,1753279847675,-151.0,0.00023561,7]
[374363118,1753279847684,-492.9,0.00023561,2]
[374363120,1753279847694,-387.36377,0.00023561,7]
[374363122,1753279847704,-387.36377,0.00023561,7]
[374363124,1753279847714,-177.69839,0.00023561,7]
[374363126,1753279847725,-287.257331,0.00023561,7]
[374363128,1753279847735,-177.69839,0.00023561,7]
[374363130,1753279847746,-460.0,0.00023561,2]
[374363132,1753279847755,-151.0,0.00023561,7]
[374363134,1753279847765,-1795.317822,0.00023561,7]
[374363136,1753279847774,-1795.317822,0.00023561,7]
[374363138,1753279847784,-151.0,0.00023561,7]
[374363140,1753279847793,-151.0,0.00023561,7]
[374363142,1753279847803,-460.0,0.00023561,2]
[374363144,1753279847812,-774.0,0.00023561,2]
[374363146,1753279847822,-200.0,0.00023561,2]
[374363148,1753279847832,-200.0,0.00023561,2]
[374363150,1753279847841,-200.0,0.00023561,2]
[374363152,1753279847851,-200.0,0.00023561,2]
[374363154,1753279847861,-290.05287209,0.00023561,2]
[374363156,1753279847870,-4461.85,0.00023561,2]
[374363158,1753279847879,-460.0,0.00023561,2]
[374363160,1753279847889,-776.97,0.00023561,2]
[374363162,1753279847898,-943.52,0.00023561,2]
[374363164,1753279847908,-460.0,0.00023561,2]
[374363166,1753279847917,-1021.86,0.00023561,2]
[374363168,1753279847926,-662.95,0.00023561,2]
[374363170,1753279847936,-151.0,0.000236,7]
[374363172,1753279847945,-151.0,0.000236,7]
[374363174,1753279847955,-642.0,0.000237,2]
[374363176,1753279847965,-168.0,0.00023704,2]
[374363178,1753279847974,-168.0,0.00023705,2]
[374363180,1753279847983,-180.498069,0.00023744,2]
[374363182,1753279847992,-211.815529,0.0002375,3]
[374363184,1753279848001,-211.815529,0.0002375,3]
[374363186,1753279848011,-287.5,0.00023785,6]
[374363188,1753279848020,-1155.0861976,0.00023825,2]
[374363190,1753279848029,-577.5430988,0.00023825,2]
[374363191,1753279848038,-577.5430988,0.00023825,2]
[374363193,1753279848047,-577.5430988,0.00023825,2]
[374363195,1753279848057,-211.815529,0.00023831,10]
[374363197,1753279848066,-492.9,0.00023835,2]
[374363199,1753279848075,-460.0,0.00023835,2]
[374363201,1753279848085,-12500.0,0.00023835,7]
[374363203,1753279848094,-460.0,0.00023835,2]
[374363205,1753279848103,-774.0,0.00023835,2]
[374363207,1753279848113,-4461.85,0.00023835,2]
[374363209,1753279848122,-460.0,0.00023835,2]
[374363211,1753279848132,-776.97,0.00023835,2]
[374363213,1753279848142,-943.52,0.00023835,2]
[374363214,1753279848152,-460.0,0.00023835,2]
[374363215,1753279848161,-1021.86,0.00023835,2]
[374363216,1753279848171,-662.95,0.00023835,2]
[374363217,1753279848180,-168.0,0.00023837,2]
[374363218,1753279848191,-205.0,0.0002384,2]
[374363219,1753279848201,-216.862,0.00023857,2]
[374363220,1753279848210,-250.0,0.00023857,2]
[374363222,1753279848220,-150.0,0.00023857,2]
[374363224,1753279848230,-260.084,0.00023857,2]
[374363226,1753279848240,-217.664,0.00023857,2]
[374363228,1753279848250,-168.0,0.00023945,2]
[374363230,1753279848259,-760.0,0.00023988,2]
[374363232,1753279848269,-211.815529,0.00023991,6]
[374363234,1753279848279,-211.815529,0.00023991,6]
[374363236,1753279848289,-160.0,0.00024,7]
[374363238,1753279848299,-2000.0,0.00024,2]
[374363240,1753279848309,-526.15909479,0.00024,10]
[374363242,1753279848319,-231.11583447,0.00024,7]
[374363244,1753279848329,-231.11583447,0.00024,10]
[374363246,1753279848338,-160.0,0.00024,7]
[374363248,1753279848348,-160.0,0.00024,10]
[374363250,1753279848358,-160.0,0.00024,7]
[374363252,1753279848367,-160.0,0.00024,10]
[374363254,1753279848377,-840.06856235,0.00024,7]
[374363256,1753279848387,-840.06856235,0.00024,10]
[374363258,1753279848397,-168.0,0.00024053,2]
[374363260,1753279848407,-600.0,0.00024065,2]
[374363262,1753279848418,-3000.0,0.000241,2]
[374363264,1753279848429,-460.0,0.00024108,2]
[374363266,1753279848441,-460.0,0.00024108,2]
[374363268,1753279848450,-335.25489743,0.00024108,2]
[374363270,1753279848461,-460.0,0.00024108,2]
[374363272,1753279848471,-429.59949589,0.00024108,2]
[374363274,1753279848481,-460.0,0.00024108,2]
[374363276,1753279848491,-460.0,0.00024108,2]
[374363278,1753279848501,-212.58,0.00024108,2]
[374363280,1753279848511,-460.0,0.00024108,2]
[374363282,1753279848521,-460.0,0.00024108,2]
[374363285,1753279848531,-460.0,0.00024108,2]
[374363287,1753279848542,-460.0,0.00024108,2]
[374363289,1753279848552,-460.0,0.00024108,2]
[374363291,1753279848562,-460.0,0.00024108,2]
[374363293,1753279848571,-460.0,0.00024108,2]
[374363295,1753279848580,-460.0,0.00024108,2]
[374363297,1753279848589,-460.0,0.00024108,2]
[374363299,1753279848599,-1297.2,0.00024108,2]
[374363300,1753279848608,-460.0,0.00024108,2]
[374363302,1753279848617,-460.0,0.00024108,2]
[374363304,1753279848627,-460.0,0.00024108,2]
[374363307,1753279848637,-492.9,0.00024109,2]
[374363309,1753279848647,-321.88183668,0.00024109,2]
[374363311,1753279848658,-460.0,0.00024109,2]
[374363313,1753279848668,-774.0,0.00024109,2]
[374363315,1753279848678,-4461.85,0.00024109,2]
[374363316,1753279848688,-460.0,0.00024109,2]
[374363319,1753279848698,-776.97,0.00024109,2]
[374363320,1753279848708,-943.52,0.00024109,2]
[374363323,1753279848718,-575.16,0.00024109,2]
[374363324,1753279848728,-1021.86,0.00024109,2]
[374363326,1753279848737,-662.95,0.00024109,2]
[374363328,1753279848746,-672.93,0.00024109,2]
[374363330,1753279848756,-167.47247348,0.0002411,2]
[374363332,1753279848766,-167.4724735,0.0002411,2]
[374363335,1753279848775,-3000.0,0.0002411,2]
[374363336,1753279848785,-287.5,0.00024113,7]
[374363338,1753279848794,-3000.0,0.0002412,2]
[374363340,1753279848803,-600.0,0.00024123,2]
[374363343,1753279848813,-3000.0,0.0002413,2]
[374363345,1753279848822,-3000.0,0.0002414,2]
[374363347,1753279848831,-3000.0,0.0002415,2]
[374363349,1753279848841,-600.0,0.00024156,2]
[374363351,1753279848851,-205.0,0.0002416,2]
[374363352,1753279848861,-3000.0,0.0002416,2]
[374363355,1753279848870,-500.0,0.00024166,2]
[374363356,1753279848880,-3000.0,0.0002417,2]
[374363358,1753279848890,-3000.0,0.0002418,2]
[374363360,1753279848898,-3000.0,0.0002419,2]
[374363362,1753279848908,-168.0,0.00024196,2]
[374363364,1753279848917,-858.87399471,0.00024197,2]
[374363366,1753279848927,-3000.0,0.000242,2]
[374363368,1753279848938,-250.0,0.00024204,2]
[374363371,1753279848948,-3000.0,0.0002421,2]
[374363372,1753279848957,-151.0,0.00024212,7]
[374363374,1753279848967,-151.0,0.00024212,7]
[374363376,1753279848976,-3000.0,0.0002422,2]
[374363378,1753279848986,-3000.0,0.0002423,2]
[374363381,1753279848996,-3000.0,0.0002424,2]
[374363382,1753279849005,-177.69839,0.0002425,7]
[374363384,1753279849015,-177.69839,0.0002425,7]
[374363386,1753279849025,-3000.0,0.0002425,2]
[374363388,1753279849035,-1795.317822,0.0002425,7]
[374363390,1753279849045,-1795.317822,0.0002425,7]
[374363392,1753279849055,-600.0,0.00024252,2]
[374363394,1753279849064,-211.815529,0.00024254,10]
[374363396,1753279849074,-3000.0,0.0002426,2]
[374363398,1753279849084,-500.0,0.00024264,2]
[374363400,1753279849093,-3000.0,0.0002427,2]
[374363402,1753279849103,-500.0,0.0002427,2]
[374363405,1753279849112,-600.0,0.00024275,2]
[374363406,1753279849121,-3000.0,0.0002428,2]
[374363409,1753279849131,-3000.0,0.0002429,2]
[374363411,1753279849140,-3000.0,0.000243,2]
[374363413,1753279849150,-2357.27,0.000243,7]
[374363415,1753279849159,-210.931576,0.00024303,8]
[374363417,1753279849171,-5033.903291,0.0002431,2]
[374363419,1753279849180,-429.674968,0.00024329,2]
[374363421,1753279849191,-429.674968,0.00024329,2]
[374363423,1753279849200,-429.674968,0.00024329,2]
[374363425,1753279849209,-429.674968,0.00024329,2]
[374363427,1753279849219,-500.0,0.0002433,2]
[374363429,1753279849229,-387.36377,0.0002434,7]
[374363431,1753279849239,-387.36377,0.0002434,7]
[374363433,1753279849248,-151.0,0.0002434,7]
[374363435,1753279849257,-151.0,0.0002434,7]
[374363437,1753279849268,-168.0,0.00024356,2]
[374363439,1753279849277,-310.47202461,0.00024382,2]
[374363441,1753279849287,-460.0,0.00024382,2]
[374363443,1753279849297,-460.0,0.00024382,2]
[374363445,1753279849306,-460.0,0.00024382,2]
[374363447,1753279849316,-460.0,0.00024382,2]
[374363449,1753279849325,-460.0,0.00024382,2]
[374363451,1753279849335,-460.0,0.00024382,2]
[374363453,1753279849345,-1297.2,0.00024382,2]
[374363455,1753279849355,-460.0,0.00024382,2]
[374363457,1753279849364,-460.0,0.00024382,2]
[374363459,1753279849374,-460.0,0.00024382,2]
[374363461,1753279849383,-492.9,0.00024383,2]
[374363463,1753279849393,-151.0,0.00024383,7]
[374363465,1753279849402,-460.0,0.00024383,2]
[374363467,1753279849411,-774.0,0.00024383,2]
[374363469,1753279849422,-4461.85,0.00024383,2]
[374363471,1753279849434,-460.0,0.00024383,2]
[374363473,1753279849446,-776.97,0.00024383,2]
[374363475,1753279849455,-943.52,0.00024383,2]
[374363477,1753279849467,-1021.86,0.00024383,2]
[374363479,1753279849477,-662.95,0.00024383,2]
[374363481,1753279849487,-672.93,0.00024383,2]
[374363483,1753279849497,-209.577327,0.000244,7]
[374363485,1753279849508,-151.0,0.000244,7]
[374363487,1753279849518,-151.0,0.000244,7]
[374363489,1753279849527,-387.36377,0.000244,7]
[374363491,1753279849537,-387.36377,0.000244,7]
[374363493,1753279849546,-177.69839,0.000244,7]
[374363495,1753279849556,-177.69839,0.000244,7]
[374363497,1753279849566,-151.0,0.000244,7]
[374363499,1753279849575,-1795.317822,0.000244,7]
[374363501,1753279849584,-1795.317822,0.000244,7]
[374363503,1753279849594,-151.0,0.000244,7]
[374363505,1753279849603,-151.0,0.000244,7]
[374363507,1753279849613,-211.815529,0.000244,7]
[374363509,1753279849623,-211.815529,0.000244,7]
[374363511,1753279849632,-500.0,0.00024423,2]
[374363513,1753279849642,-600.0,0.0002443,2]
[374363515,1753279849651,-503.10381467,0.00024437,9]
[374363517,1753279849661,-287.5,0.00024442,7]
[374363519,1753279849670,-600.0,0.00024453,2]
[374363521,1753279849679,-1000.0,0.00024468,2]
[374363523,1753279849690,-205.0,0.0002447,2]
[374363525,1753279849699,-11428.28,0.000245,7]
[374363527,1753279849708,-860.0,0.00024536,2]
[374363529,1753279849717,-42038.53,0.000246,2]
[374363531,1753279849727,-500.94082614,0.00024605,9]
[374363533,1753279849736,-800.0,0.00024609,2]
[374363535,1753279849746,-211.815529,0.0002462,7]
[374363537,1753279849756,-211.815529,0.0002462,7]
[374363539,1753279849765,-211.815529,0.00024625,3]
[374363541,1753279849775,-211.815529,0.00024625,3]
[374363543,1753279849785,-158.949984,0.00024625,3]
[374363545,1753279849795,-158.949985,0.00024625,3]
[374363547,1753279849804,-500.0,0.00024626,2]
[374363549,1753279849813,-460.0,0.00024656,2]
[374363551,1753279849823,-460.0,0.00024656,2]
[374363553,1753279849833,-460.0,0.00024656,2]
[374363555,1753279849842,-460.0,0.00024656,2]
[374363558,1753279849852,-460.0,0.00024656,2]
[374363560,1753279849861,-1297.2,0.00024656,2]
[374363562,1753279849871,-460.0,0.00024656,2]
[374363564,1753279849880,-460.0,0.00024656,2]
[374363566,1753279849890,-460.0,0.00024656,2]
[374363579,1753279849899,-492.9,0.00024657,2]
[374363582,1753279850022,-202.45868073,0.00024657,2]
[374363584,1753279850031,-774.0,0.00024657,2]
[374363586,1753279850041,-4461.85,0.00024657,2]
[374363588,1753279850056,-588.68126345,0.00024657,2]
[374363590,1753279850066,-776.97,0.00024657,2]
[374363592,1753279850076,-943.52,0.00024657,2]
[374363594,1753279850085,-1021.86,0.00024657,2]
[374363596,1753279850095,-662.95,0.00024657,2]
[374363598,1753279850105,-672.93,0.00024657,2]
[374363600,1753279850114,-287.7130506,0.00024658,2]
[374363602,1753279850124,-151.0,0.00024658,2]
[374363604,1753279850134,-151.0,0.00024658,2]
[374363606,1753279850144,-151.0,0.00024658,2]
[374363608,1753279850154,-151.0,0.00024658,2]
[374363610,1753279850165,-1078.0,0.00024658,2]
[374363612,1753279850175,-563.0,0.00024658,2]
[374363614,1753279850185,-151.0,0.00024658,2]
[374363616,1753279850195,-151.0,0.00024658,2]
[374363618,1753279850205,-151.0,0.00024658,2]
[374363620,1753279850216,-500.0,0.00024658,2]
[374363622,1753279850226,-151.0,0.00024658,2]
[374363624,1753279850237,-151.0,0.00024658,2]
[374363626,1753279850247,-627.0,0.00024658,2]
[374363628,1753279850256,-151.0,0.00024658,2]
[374363630,1753279850266,-500.0,0.00024658,2]
[374363632,1753279850276,-211.815529,0.00024676,10]
[374363634,1753279850285,-2200.0,0.00024685,2]
[374363636,1753279850295,-808.611,0.00024685,2]
[374363638,1753279850305,-800.0,0.00024686,2]
[374363640,1753279850315,-1213.96,0.000247,7]
[374363642,1753279850324,-500.0,0.00024716,2]
[374363644,1753279850334,-168.0,0.00024741,2]
[374363646,1753279850344,-287.5,0.0002477,7]
[374363648,1753279850354,-500.0,0.00024773,2]
[374363650,1753279850364,-202.0,0.0002478,12]
[374363652,1753279850374,-205.0,0.0002479,2]
[374363654,1753279850385,-683.83359542,0.00024799,2]
[374363656,1753279850394,-151.0,0.000248,7]
[374363658,1753279850404,-151.0,0.000248,7]
[374363661,1753279850415,-151.0,0.000248,7]
[374363663,1753279850427,-208.944323,0.000248,7]
[374363665,1753279850436,-151.0,0.000248,7]
[374363667,1753279850446,-153.443753,0.000248,7]
[374363669,1753279850455,-153.443753,0.000248,7]
[374363670,1753279850466,-151.0,0.000248,7]
[374363673,1753279850476,-151.0,0.000248,7]
[374363675,1753279850486,-169.684936,0.000248,7]
[374363676,1753279850496,-169.684936,0.000248,7]
[374363679,1753279850507,-151.0,0.000248,7]
[374363681,1753279850516,-231.413048,0.000248,7]
[374363683,1753279850525,-231.413048,0.000248,7]
[374363684,1753279850534,-151.636887,0.000248,7]
[374363686,1753279850544,-151.636887,0.000248,7]
[374363688,1753279850554,-151.0,0.000248,7]
[374363691,1753279850564,-383.193019,0.000248,7]
[374363693,1753279850574,-383.193019,0.000248,7]
[374363695,1753279850584,-204.000093,0.000248,7]
[374363697,1753279850593,-1140.417002,0.000248,7]
[374363699,1753279850602,-151.0,0.000248,7]
[374363701,1753279850612,-153.413491,0.000248,7]
[374363703,1753279850622,-153.413491,0.000248,7]
[374363705,1753279850631,-160.0,0.000248,7]
[374363707,1753279850640,-151.0,0.000248,7]
[374363709,1753279850652,-432.053455,0.000248,10]
[374363711,1753279850662,-259763.27312735,0.000248,2]
[374363722,1753279850762,-8820.99282565,0.000248,2]
[374363724,1753279850772,-14933.93583852,0.0002483,2]
[374363727,1753279850785,-44394.05355377,0.0002483,2]
[374363729,1753279850798,-46884.86695628,0.0002483,2]
[374363731,1753279850809,-256.205885,0.0002483,7]
[374363733,1753279850820,-256.205885,0.0002483,7]
[374363735,1753279850830,-165.955037,0.0002483,7]
[374363737,1753279850840,-165.955037,0.0002483,7]
[374363739,1753279850850,-151.0,0.0002483,7]
[374363741,1753279850861,-210.971553,0.0002483,7]
[374363743,1753279850870,-151.0,0.0002483,7]
[374363745,1753279850880,-577.078505,0.0002483,7]
[374363747,1753279850889,-43.2734255,0.0002483,7]
[374363750,1753279850902,-533.8050795,0.0002483,7]
[374363752,1753279850911,-151.0,0.0002483,7]
[374363754,1753279850920,-387.36377,0.0002483,7]
[374363756,1753279850930,-387.36377,0.0002483,7]
[374363758,1753279850943,-177.69839,0.0002483,7]
[374363760,1753279850952,-177.69839,0.0002483,7]
[374363762,1753279850962,-151.0,0.0002483,7]
[374363764,1753279850971,-1795.317822,0.0002483,7]
[374363766,1753279850980,-1795.317822,0.0002483,7]
[374363768,1753279850989,-151.0,0.0002483,7]
[374363770,1753279850999,-151.0,0.0002483,7]
[374363772,1753279851008,-25.9329565,0.0002484,5]
[374363774,1753279851019,-1150.4011825,0.0002484,5]
[374363776,1753279851029,-211.815529,0.0002484,7]
[374363778,1753279851038,-211.815529,0.0002484,7]
[374363780,1753279851048,-600.0,0.00024846,2]
[374363782,1753279851057,-231.28369723,0.0002486,2]
[374363784,1753279851066,-1000.0,0.0002486,5]
[374363786,1753279851076,-1298.05,0.00024865,3]
[374363788,1753279851086,-1000.0,0.0002488,5]
[374363790,1753279851096,-4115.03437227,0.00024888,2]
[374363793,1753279851108,-3604.30000002,0.00024888,2]
[374363796,1753279851131,-644.9,0.00021095,2]
[374363798,1753279851141,-644.9,0.00021369,2]
[374363800,1753279851151,-390.32873838,0.00024888,2]
[374363802,1753279851162,-3066.91224226,0.00024888,2]
[374363805,1753279851173,-572.325,0.00024888,2]
[374363807,1753279851185,-30017.794212,0.00024888,2]
[374363809,1753279851200,-2560.39320587,0.00024888,2]
[374363836,1753279851456,-460.0,0.00019178,2]
[374363838,1753279851469,-460.0,0.00019178,2]
[374363840,1753279851478,-460.0,0.00019452,2]
[374363842,1753279851488,-460.0,0.00019452,2]
[374363844,1753279851499,-460.0,0.00019726,2]
[374363846,1753279851510,-179.96609776,0.0002,2]
[374363848,1753279851520,-644.9,0.00021643,2]
[374363850,1753279851530,-644.9,0.00021917,2]
[374363852,1753279851539,-644.9,0.00022191,2]
[374363854,1753279851549,-644.9,0.00022465,2]
[374363856,1753279851558,-644.9,0.00022739,2]
[374363858,1753279851567,-215.84326551,0.00023,3]
[374363860,1753279851577,-644.9,0.00023013,2]
[374363862,1753279851586,-644.9,0.00023287,2]
[374363864,1753279851597,-215.84326551,0.00024,7]
[374363866,1753279851606,-215.84326551,0.00024,10]
[374363868,1753279851616,-746.00028591,0.00024799,2]
[374363870,1753279851625,-4873.76786809,0.000248,2]
[374363872,1753279851635,-849.72187623,0.00024888,2]
[374363874,1753279851645,-500.0,0.00024897,2]
[374363876,1753279851654,-17647.03740224,0.000249,2]
[374372176,1753280110284,1711.40559457,0.00026027,120]
[374372178,1753280627239,-150.0,0.00017532,2]
[374372183,1753280753402,-22.59,0.00017532,2]
[374372184,1753280753424,-1763.98484886,0.000176,2]
[374372185,1753280753448,-172.472485,0.00017632,2]
[374372186,1753280753469,-624.7241262,0.00018627,2]
[374372187,1753280753490,-302.69733596,0.000189,2]
[374372188,1753280753512,-206.38500945,0.00019078,2]
[374372189,1753280753533,-152.06041235,0.00019089,2]
[374372190,1753280753554,-500.0,0.00019173,2]
[374372191,1753280753575,-300.0,0.00019176,2]
[374372192,1753280753594,-300.0,0.00019176,2]
[374372193,1753280753615,-1200.0,0.00019176,2]
[374372194,1753280753639,-500.0,0.00019177,2]
[374372195,1753280753661,-500.0,0.00019177,2]
[374372196,1753280753683,-387.18929126,0.00019177,2]
[374372197,1753280753709,-267.19260375,0.00019177,2]
[374372205,1753280825115,-406.82812619,0.00019176,2]
[374372207,1753280830174,-112.17187381,0.00019176,2]
[374372208,1753280830197,-232.80739625,0.00019177,2]
[374372209,1753280830220,-464.7873183,0.00019177,2]
[374372210,1753280830243,-222.30087042,0.00019177,2]
[374372211,1753280830270,-500.0,0.00019177,2]
[374372212,1753280830295,-135.45944228,0.00019177,2]
[374372215,1753280845123,-364.54055772,0.00019177,2]
[374372216,1753280845148,-500.0,0.00019177,2]
[374372217,1753280845176,-500.0,0.00019177,2]
[374372218,1753280845201,-161.36250405,0.00019177,2]
[374372229,1753280913746,677.84619022,0.0001,7]
[374372233,1753280920770,360.577326,0.0002,120]
[374372235,1753280921883,398.455224,0.00013699,2]
[374372289,1753281032447,-45.20312513,0.00019078,2]
[374372292,1753281032459,-329.68468918,0.00019078,2]
[374372294,1753281032469,-338.63749595,0.00019177,2]
[374372296,1753281032478,-500.0,0.00019177,2]
[374372298,1753281032489,-500.0,0.00019177,2]
[374372300,1753281032499,-500.0,0.00019177,2]
[374372302,1753281032508,-500.0,0.00019177,2]
[374372304,1753281032518,-500.0,0.00019177,2]
[374372306,1753281032527,-145.92739264,0.00019177,2]
[374372308,1753281032539,-354.07260736,0.00019177,2]
[374372311,1753281032549,-196.54349946,0.00019177,2]
[374372313,1753281032559,-500.0,0.00019177,2]
[374372315,1753281032568,-15.8716937,0.00019177,2]
[374372343,1753281040129,-484.1283063,0.00019177,2]
[374372345,1753281040140,-295.0164093,0.00019177,2]
[374372346,1753281040149,-465.31352507,0.00019178,2]
[374372347,1753281040159,-460.0,0.00019178,2]
[374372348,1753281040169,-460.0,0.00019178,2]
[374372349,1753281040180,-460.0,0.00019178,2]
[374372350,1753281040190,-460.0,0.00019178,2]
[374372351,1753281040199,-460.0,0.00019178,2]
[374372352,1753281040208,-460.0,0.00019178,2]
[374372353,1753281040218,-460.0,0.00019178,2]
[374372354,1753281040227,-460.0,0.00019178,2]
[374372355,1753281040236,-460.0,0.00019178,2]
[374372356,1753281040246,-464.44360599,0.00019178,2]
[374372357,1753281040255,-460.0,0.00019178,2]
[374372358,1753281040264,-460.0,0.00019178,2]
[374372359,1753281040274,-460.0,0.00019178,2]
[374372361,1753281040283,-500.0,0.00019178,2]
[374372362,1753281040293,-460.0,0.00019178,2]
[374372364,1753281040303,-460.0,0.00019178,2]